fUST/lending_fUST_20251022
["ID","MTS","AMOUNT","RATE_DAILY","PERIOD"]
[392010588,1761091840981,-600.0,0.00024803,20]
[392010590,1761091840990,-168.0,0.00024806,2]
[392010592,1761091841001,-269.0,0.00024808,2]
[392010594,1761091841014,-519.36393615,0.00024809,2]
[392010596,1761091841026,-953.22,0.00024811,2]
[392010598,1761091841038,-151.0,0.00024811,7]
[392010601,1761091841051,-151.0,0.00024811,7]
[392010602,1761091841063,-151.0,0.00024811,7]
[392010603,1761091841076,-1698.0,0.00024811,2]
[392010604,1761091841087,-381.0,0.00024847,2]
[392010605,1761091841097,-500.0,0.00024851,5]
[392010606,1761091841107,-500.0,0.00024873,2]
[392010607,1761091841119,-500.0,0.00024873,2]
[392010608,1761091841130,-500.0,0.00024873,2]
[392010609,1761091841141,-268.51685501,0.00024873,2]
[392010610,1761091841152,-500.0,0.00024873,2]
[392010611,1761091841163,-500.0,0.00024873,2]
[392010612,1761091841174,-151.0,0.00024873,7]
[392010613,1761091841186,-155.134188,0.00024873,7]
[392010614,1761091841197,-151.0,0.00024873,7]
[392010615,1761091841208,-151.0,0.00024873,7]
[392010616,1761091841219,-196.081056,0.00024873,7]
[392010617,1761091841232,-151.0,0.00024873,7]
[392010618,1761091841242,-151.0,0.00024873,7]
[392010619,1761091841254,-1526.424252,0.00024873,7]
[392010620,1761091841265,-1526.424252,0.00024873,7]
[392010621,1761091841276,-1526.424252,0.00024873,7]
[392010622,1761091841287,-1526.424252,0.00024873,7]
[392010623,1761091841298,-200.0,0.00024873,7]
[392010624,1761091841309,-200.0,0.00024873,7]
[392010625,1761091841320,-200.0,0.00024873,7]
[392010626,1761091841331,-200.0,0.00024873,7]
[392010627,1761091841342,-200.0,0.00024873,7]
[392010628,1761091841353,-17647.9949951,0.0002489,2]
[392010629,1761091841365,-151.0,0.0002489,7]
[392010630,1761091841377,-151.0,0.0002489,7]
[392010631,1761091841391,-229.974319,0.0002489,7]
[392010632,1761091841401,-204.03219702,0.00024899,2]
[392010633,1761091841413,-151.0,0.000249,7]
[392010634,1761091841423,-276.673246,0.000249,7]
[392010635,1761091841433,-151.0,0.000249,7]
[392010636,1761091841443,-151.0,0.000249,7]
[392010637,1761091841454,-151.0,0.000249,7]
[392010638,1761091841465,-151.0,0.000249,7]
[392010639,1761091841476,-151.0,0.000249,7]
[392010640,1761091841486,-151.0,0.000249,7]
[392010641,1761091841498,-151.0,0.000249,7]
[392010642,1761091841510,-151.0,0.000249,7]
[392010643,1761091841522,-151.0,0.000249,7]
[392010644,1761091841537,-151.0,0.000249,7]
[392010645,1761091841552,-151.0,0.000249,7]
[392010646,1761091841566,-151.0,0.000249,7]
[392010647,1761091841580,-151.0,0.000249,7]
[392010648,1761091841594,-355594.37145,0.000249,2]
[392010649,1761091841609,-151.0,0.000249,7]
[392010650,1761091841623,-151.0,0.000249,7]
[392010651,1761091841642,-351.379604,0.000249,7]
[392010652,1761091841656,-351.379604,0.000249,7]
[392010653,1761091841672,-351.379604,0.000249,7]
[392010654,1761091841684,-351.379604,0.000249,7]
[392010655,1761091841696,-151.0,0.000249,7]
[392010656,1761091841708,-151.0,0.000249,7]
[392010657,1761091841719,-1526.424252,0.000249,7]
[392010658,1761091841731,-1526.424252,0.000249,7]
[392010659,1761091841742,-1526.424252,0.000249,7]
[392010660,1761091841754,-1526.424252,0.000249,7]
[392010661,1761091841767,-1526.424252,0.000249,7]
[392010662,1761091841781,-1526.424252,0.000249,7]
[392010663,1761091841793,-1526.424252,0.000249,7]
[392010664,1761091841808,-1526.42424345,0.000249,7]
[392010665,1761091841821,-151.0,0.000249,7]
[392010666,1761091841831,-178.905045,0.000249,7]
[392010667,1761091841842,-1698.0,0.00024931,2]
[392010668,1761091841853,-168.0,0.0002495,2]
[392010669,1761091841864,-3819.0,0.00024967,2]
[392010670,1761091841873,-269.0,0.00024993,2]
[392010671,1761091841885,-500.0,0.00025125,5]
[392010672,1761091841895,-632.0,0.00025195,2]
[392010673,1761091841907,-983.0,0.00025195,2]
[392010674,1761091841917,-2164.0,0.00025195,2]
[392010675,1761091841927,-151.0,0.00025195,7]
[392010676,1761091841937,-151.0,0.00025195,7]
[392010677,1761091841947,-151.0,0.00025195,7]
[392010678,1761091841958,-194.846015,0.00025195,7]
[392010679,1761091841970,-2205.99937439,0.00025198,2]
[392010680,1761091841980,-4205.0,0.000252,2]
[392010681,1761091841992,-3453.30285661,0.00025208,2]
[392010682,1761091842002,-151.0,0.0002522,7]
[392010683,1761091842013,-151.0,0.0002522,7]
[392010684,1761091842024,-151.0,0.0002522,7]
[392010685,1761091842035,-151.0,0.00025286,7]
[392010686,1761091842049,-151.0,0.00025286,7]
[392010687,1761091842061,-151.0,0.00025286,7]
[392010688,1761091842071,-151.0,0.00025286,7]
[392010689,1761091842082,-151.0,0.00025286,7]
[392010690,1761091842093,-151.0,0.00025286,7]
[392010691,1761091842103,-351.379604,0.00025286,7]
[392010693,1761091842114,-351.379604,0.00025286,7]
[392010695,1761091842124,-351.379604,0.00025286,7]
[392010697,1761091842135,-351.379604,0.00025286,7]
[392010699,1761091842146,-150.0,0.00025286,2]
[392010701,1761091842156,-150.0,0.00025286,2]
[392010703,1761091842166,-257.596,0.00025286,2]
[392010705,1761091842178,-151.736,0.00025286,2]
[392010707,1761091842191,-262.513,0.00025286,2]
[392010710,1761091842203,-150.0,0.00025286,2]
[392010712,1761091842215,-294.254,0.00025286,2]
[392010714,1761091842226,-500.0,0.00025399,5]
[392010716,1761091842236,-1000.0,0.00025421,2]
[392010718,1761091842247,-1000.0,0.00025421,2]
[392010720,1761091842258,-1000.0,0.00025421,2]
[392010722,1761091842268,-1000.0,0.00025421,2]
[392010724,1761091842279,-151.0,0.00025611,7]
[392010726,1761091842289,-151.0,0.00025611,7]
[392010728,1761091842302,-168.252432,0.00025611,7]
[392010730,1761091842313,-501.68609021,0.00025611,2]
[392010732,1761091842324,-500.0,0.00025611,2]
[392010734,1761091842335,-500.0,0.00025673,5]
[392010737,1761091842345,-160.0,0.00025682,2]
[392010739,1761091842356,-1089.39,0.0002573,2]
[392010740,1761091842366,-1698.0,0.00025794,2]
[392010742,1761091842377,-598.58894336,0.00025809,2]
[392010745,1761091842387,-1698.0,0.00025819,2]
[392010747,1761091842398,-168.0,0.00025912,2]
[392010749,1761091842409,-3453.30285661,0.00025939,2]
[392010751,1761091842419,-151.0,0.00025939,7]
[392010753,1761091842430,-351.379604,0.00025939,7]
[392010756,1761091842441,-351.379604,0.00025939,7]
[392010758,1761091842452,-351.379604,0.00025939,7]
[392010760,1761091842462,-351.379596,0.00025939,7]
[392010762,1761091842473,-151.0,0.00025947,7]
[392010764,1761091842483,-500.0,0.00025947,5]
[392010766,1761091842495,-2205.99937439,0.00025958,2]
[392010769,1761091842505,-151.0,0.00025968,7]
[392010771,1761091842516,-200.160484,0.00025968,7]
[392010773,1761091842526,-151.0,0.00025968,7]
[392010775,1761091842536,-216.857348,0.00025968,7]
[392010777,1761091842548,-1500.0,0.00025968,2]
[392010779,1761091842558,-1287.33199543,0.00025968,2]
[392010781,1761091842568,-1500.0,0.00025968,2]
[392010783,1761091842579,-1500.0,0.00025968,2]
[392010785,1761091842589,-500.0,0.00025986,2]
[392010788,1761091842599,-503.36300446,0.00025986,2]
[392010790,1761091842609,-902.9520501,0.00025995,2]
[392010792,1761091842621,-420.0,0.00026015,2]
[392010794,1761091842635,-600.0,0.00026074,2]
[392010796,1761091842645,-500.0,0.00026221,5]
[392010798,1761091842656,-260.0,0.0002623,2]
[392010801,1761091842667,-403.05172659,0.00026316,7]
[392010803,1761091842677,-600.0,0.00026345,2]
[392010804,1761091842687,-201.4758355,0.00026369,2]
[392010806,1761091842697,-10449.26583906,0.00026444,2]
[392010807,1761091842709,-500.0,0.00026495,5]
[392010808,1761091842720,-277.0,0.000265,2]
[392010809,1761091842730,-205.808469,0.000265,2]
[392010810,1761091842740,-2000.0,0.00026516,2]
[392010811,1761091842751,-2000.0,0.00026516,2]
[392010812,1761091842761,-2000.0,0.00026516,2]
[392010813,1761091842771,-502.2414896,0.00026534,2]
[392010814,1761091842781,-600.0,0.00026617,2]
[392010815,1761091842791,-1225.57,0.00026649,2]
[392010816,1761091842803,-178.5838744,0.00026661,2]
[392010817,1761091842980,-3453.30285661,0.00026669,2]
[392010818,1761091842995,-1500.0,0.00026673,28]
[392010819,1761091843004,-1500.0,0.00026673,28]
[392010820,1761091843014,-1500.0,0.00026673,28]
[392010821,1761091843023,-1500.0,0.00026673,28]
[392010822,1761091843032,-1500.0,0.00026673,28]
[392010823,1761091843041,-1500.0,0.00026673,28]
[392010824,1761091843053,-1500.0,0.00026673,28]
[392010825,1761091843063,-1045.002135,0.00026676,2]
[392010826,1761091843072,-2205.99937439,0.00026754,2]
[392010827,1761091843083,-500.0,0.00026769,5]
[392010828,1761091843094,-360.0,0.00026778,2]
[392010829,1761091843104,-677.81395056,0.00026809,2]
[392010830,1761091843114,-600.0,0.00026888,2]
[392010831,1761091843124,-459.375567,0.000269,20]
[392010832,1761091843134,-1102.441547,0.000269,20]
[392010833,1761091843143,-150.0,0.00026973,2]
[392010834,1761091843152,-150.0,0.00026973,2]
[392010836,1761091843161,-500.0,0.00026973,2]
[392010838,1761091843171,-503.61283294,0.00026973,2]
[392010840,1761091843180,-500.0,0.00026973,2]
[392010842,1761091843189,-500.0,0.00026973,2]
[392010844,1761091843199,-500.88756936,0.00026973,2]
[392010846,1761091843208,-500.0,0.00026973,2]
[392010848,1761091843218,-501.46413548,0.00026973,2]
[392010850,1761091843227,-331.36782539,0.00026973,2]
[392010852,1761091843236,-500.0,0.00026973,2]
[392010854,1761091843245,-500.0,0.00026973,2]
[392010855,1761091843255,-500.0,0.00026973,2]
[392010856,1761091843263,-500.0,0.00026973,2]
[392010857,1761091843272,-500.0,0.00026973,2]
[392010858,1761091843282,-215.95129945,0.00026973,2]
[392010859,1761091843291,-500.0,0.00026973,2]
[392010860,1761091843304,-500.0,0.00026973,2]
[392010861,1761091843313,-500.0,0.00026973,2]
[392010862,1761091843323,-515.16222619,0.00026973,2]
[392010864,1761091843332,-500.0,0.00026973,2]
[392010866,1761091843342,-500.0,0.00026973,2]
[392010868,1761091843351,-500.0,0.00026973,2]
[392010870,1761091843360,-501.63714413,0.00026973,2]
[392010872,1761091843369,-160.74874242,0.00026999,2]
[392010874,1761091843379,-119990.989999,0.00027,2]
[392010876,1761091843389,-324157.7359877,0.00027,2]
[392010878,1761091843398,-281.2,0.00027,2]
[392010880,1761091843408,-30150.58,0.00027,7]
[392010881,1761091843418,-403.05172659,0.00027,7]
[392010882,1761091843427,-4110.76,0.00027,3]
[392010883,1761091843437,-500.0,0.00027043,5]
[392010884,1761091843447,-2368.00152489,0.00027064,2]
[392010885,1761091843456,-2500.0,0.00027064,2]
[392010886,1761091843465,-2500.0,0.00027064,2]
[392010888,1761091843475,-200.0,0.000271,7]
[392010889,1761091843484,-1008.0392208,0.00027123,3]
[392010890,1761091843494,-600.0,0.0002716,2]
[392010891,1761091843503,-720.0,0.00027284,30]
[392010892,1761091843512,-500.0,0.00027317,5]
[392010893,1761091843521,-5000.0,0.00027318,2]
[392010894,1761091843540,-460.0,0.00027326,2]
[392010895,1761091843553,-166.82818168,0.0002739,2]
[392010896,1761091843562,-500.0,0.00027397,8]
[392010897,1761091843572,-623.44157235,0.00027397,8]
[392010898,1761091843582,-500.0,0.00027397,8]
[392010899,1761091843592,-183.80080292,0.00027397,8]
[392010900,1761091843602,-151.0,0.00027397,30]
[392010902,1761091843611,-152.898641,0.00027397,30]
[392010903,1761091843621,-154.160189,0.00027397,30]
[392010905,1761091843635,-154.160189,0.00027397,30]
[392010906,1761091843645,-154.160189,0.00027397,30]
[392010908,1761091843655,-154.160189,0.00027397,30]
[392010909,1761091843664,-154.160189,0.00027397,30]
[392010910,1761091843674,-154.160189,0.00027397,30]
[392010911,1761091843684,-154.160189,0.00027397,30]
[392010912,1761091843694,-154.160189,0.00027397,30]
[392010913,1761091843703,-154.160189,0.00027397,30]
[392010914,1761091843715,-154.160189,0.00027397,30]
[392010915,1761091843725,-154.160189,0.00027397,30]
[392010916,1761091843735,-154.160189,0.00027397,30]
[392010917,1761091843745,-154.160189,0.00027397,30]
[392010918,1761091843755,-154.160189,0.00027397,30]
[392010919,1761091843764,-154.160189,0.00027397,30]
[392010920,1761091843774,-154.160189,0.00027397,30]
[392010921,1761091843784,-154.160189,0.00027397,30]
[392010922,1761091843793,-154.160189,0.00027397,30]
[392010923,1761091843805,-154.160189,0.00027397,30]
[392010924,1761091843815,-154.160181,0.00027397,30]
[392010925,1761091843824,-152.012953,0.00027397,30]
[392010926,1761091843834,-151.0,0.00027397,7]
[392010927,1761091843844,-151.0,0.00027397,7]
[392010928,1761091843854,-151.0,0.00027397,7]
[392010929,1761091843863,-166.863315,0.00027397,7]
[392010930,1761091843873,-2510.83,0.000274,2]
[392010931,1761091843884,-3909.96,0.000274,7]
[392010932,1761091843894,-3453.30285661,0.000274,2]
[392010933,1761091843903,-600.0,0.00027432,2]
[392010934,1761091843913,-710.848,0.00027479,16]
[392010935,1761091843922,-42927.72802836,0.000275,2]
[392010936,1761091843932,-3000.0,0.000275,2]
[392010937,1761091843941,-3000.0,0.000275,2]
[392010938,1761091843950,-459.375567,0.000275,2]
[392010940,1761091843960,-1102.441547,0.000275,2]
[392010942,1761091843969,-200.0,0.0002751,7]
[392010944,1761091843979,-3000.0,0.0002751,2]
[392010946,1761091843988,-3000.0,0.0002751,2]
[392010948,1761091843998,-3000.0,0.0002752,2]
[392010950,1761091844007,-3000.0,0.0002752,2]
[392010952,1761091844017,-300.0,0.00027521,5]
[392010954,1761091844026,-250.0,0.00027521,5]
[392010955,1761091844035,-1000.0,0.00027521,5]
[392010956,1761091844043,-1000.0,0.00027521,5]
[392010957,1761091844054,-500.0,0.00027521,5]
[392010958,1761091844062,-1000.0,0.00027521,5]
[392010959,1761091844071,-1000.0,0.00027521,5]
[392010960,1761091844080,-1000.0,0.00027521,5]
[392010961,1761091844089,-1000.0,0.00027521,5]
[392010962,1761091844099,-1000.0,0.00027521,5]
[392010963,1761091844108,-503.37451006,0.00027521,5]
[392010964,1761091844118,-589.98573304,0.00027521,5]
[392010965,1761091844129,-1000.0,0.00027521,5]
[392010966,1761091844140,-1000.0,0.00027521,5]
[392010967,1761091844149,-3000.0,0.0002753,2]
[392010968,1761091844158,-3000.0,0.0002753,2]
[392010969,1761091844167,-3000.0,0.0002754,2]
[392010970,1761091844177,-3000.0,0.0002754,2]
[392010971,1761091844187,-3000.0,0.0002755,2]
[392010972,1761091844196,-3000.0,0.0002755,2]
[392010973,1761091844206,-3000.0,0.0002756,2]
[392010974,1761091844215,-3000.0,0.0002756,2]
[392010975,1761091844225,-1361.74,0.00027568,2]
[392010976,1761091844234,-3000.0,0.0002757,2]
[392010977,1761091844244,-3000.0,0.0002757,2]
[392010978,1761091844253,-150.0,0.00027573,5]
[392010979,1761091844263,-4088.698281,0.0002758,2]
[392010980,1761091844272,-3000.0,0.0002758,2]
[392010981,1761091844281,-3000.0,0.0002759,2]
[392010982,1761091844291,-500.0,0.00027591,15]
[392010983,1761091844303,-3000.0,0.000276,2]
[392010984,1761091844312,-3000.0,0.0002761,2]
[392010985,1761091844321,-1059.16849408,0.00027612,5]
[392010986,1761091844331,-3000.0,0.00027612,5]
[392010987,1761091844341,-3000.0,0.0002762,2]
[392010988,1761091844351,-3000.0,0.0002763,2]
[392010989,1761091844360,-3000.0,0.0002764,2]
[392010990,1761091844370,-3000.0,0.0002765,2]
[392010991,1761091844379,-11492.99062083,0.0002765,2]
[392010992,1761091844388,-3000.0,0.0002766,2]
[392010993,1761091844397,-3000.0,0.0002767,2]
[392010994,1761091844407,-199.0,0.00027671,7]
[392010995,1761091844416,-3000.0,0.0002768,2]
[392010996,1761091844425,-3000.0,0.0002769,2]
[392010997,1761091844434,-392.8087668,0.00027694,30]
[392010998,1761091844444,-392.8087668,0.00027694,30]
[392010999,1761091844454,-392.8087668,0.00027694,30]
[392011000,1761091844463,-3000.0,0.000277,2]
[392011001,1761091844472,-600.0,0.00027703,2]
[392011002,1761091844482,-3000.0,0.0002771,2]
[392011003,1761091844492,-3000.0,0.0002772,2]
[392011004,1761091844503,-3000.0,0.0002773,2]
[392011005,1761091844514,-500.0,0.00027739,30]
[392011006,1761091844525,-500.0,0.00027739,30]
[392011007,1761091844535,-500.0,0.00027739,30]
[392011008,1761091844545,-500.0,0.00027739,30]
[392011009,1761091844555,-500.0,0.00027739,30]
[392011010,1761091844565,-500.0,0.00027739,30]
[392011011,1761091844575,-500.0,0.00027739,30]
[392011012,1761091844584,-500.0,0.00027739,30]
[392011013,1761091844594,-500.0,0.00027739,30]
[392011014,1761091844603,-500.0,0.00027739,30]
[392011015,1761091844613,-500.0,0.00027739,30]
[392011016,1761091844624,-500.0,0.00027739,30]
[392011017,1761091844640,-500.0,0.00027739,30]
[392011018,1761091844650,-500.0,0.00027739,30]
[392011019,1761091844660,-500.0,0.00027739,30]
[392011020,1761091844669,-500.0,0.00027739,30]
[392011021,1761091844679,-500.0,0.00027739,30]
[392011022,1761091844688,-500.0,0.00027739,30]
[392011023,1761091844698,-500.0,0.00027739,30]
[392011024,1761091844711,-500.0,0.00027739,30]
[392011025,1761091844721,-328.60445824,0.00027739,30]
[392011026,1761091844730,-3000.0,0.0002774,2]
[392011027,1761091844739,-3000.0,0.0002775,2]
[392011028,1761091844748,-250.0,0.00027753,2]
[392011029,1761091844758,-3000.0,0.0002776,2]
[392011030,1761091844767,-3000.0,0.0002777,2]
[392011031,1761091844776,-3000.0,0.0002778,2]
[392011032,1761091844787,-3000.0,0.0002779,2]
[392011033,1761091844796,-403.05172659,0.000278,30]
[392011034,1761091844806,-160.0,0.000278,30]
[392011035,1761091844815,-3000.0,0.000278,2]
[392011036,1761091844825,-757.03895777,0.00027809,2]
[392011037,1761091844834,-3000.0,0.0002781,2]
[392011038,1761091844844,-3000.0,0.0002782,2]
[392011039,1761091844854,-3000.0,0.0002783,2]
[392011040,1761091844863,-3000.0,0.0002784,2]
[392011041,1761091844873,-3000.0,0.0002785,2]
[392011042,1761091844883,-3000.0,0.0002786,2]
[392011043,1761091844893,-500.0,0.00027865,15]
[392011044,1761091844902,-3000.0,0.0002787,2]
[392011045,1761091844911,-560.0,0.00027874,2]
[392011046,1761091844920,-3000.0,0.0002788,2]
[392011047,1761091844930,-459.375567,0.00027889,20]
[392011048,1761091844940,-1102.441547,0.00027889,20]
[392011049,1761091844949,-3000.0,0.0002789,2]
[392011050,1761091844960,-592.13678295,0.000279,2]
[392011051,1761091844969,-3000.0,0.000279,2]
[392011052,1761091844981,-340.59,0.0002791,7]
[392011053,1761091844989,-3000.0,0.0002791,2]
[392011054,1761091844999,-3000.0,0.0002792,2]
[392011055,1761091845008,-3000.0,0.0002793,2]
[392011056,1761091845018,-3442.752674,0.0002794,2]
[392011057,1761091845027,-199.0,0.00027945,8]
[392011058,1761091845037,-864.25135992,0.00027975,2]
[392011059,1761091845048,-152.399999,0.00028,2]
[392011060,1761091845057,-1240.85310535,0.00028,2]
[392011061,1761091845066,-150.5,0.00028,2]
[392011062,1761091845076,-30150.58,0.00028,7]
[392011063,1761091845085,-350.0,0.00028068,5]
[392011064,1761091845094,-450.0,0.00028068,5]
[392011065,1761091845103,-1500.0,0.00028068,5]
[392011066,1761091845112,-1500.0,0.00028068,5]
[392011067,1761091845121,-177.87452253,0.00028068,5]
[392011068,1761091845131,-515.17588465,0.00028068,5]
[392011069,1761091845141,-1066.51221297,0.00028068,5]
[392011070,1761091845150,-1500.0,0.00028068,5]
[392011071,1761091845160,-200.0,0.000281,7]
[392011072,1761091845169,-250.0,0.00028121,5]
[392011073,1761091845178,-500.0,0.00028139,15]
[392011074,1761091845187,-3500.0,0.0002816,5]
[392011075,1761091845196,-632.0,0.00028195,2]
[392011076,1761091845205,-983.0,0.00028195,2]
[392011077,1761091845214,-2164.0,0.00028195,2]
[392011078,1761091845223,-587.0,0.00028212,2]
[392011079,1761091845233,-199.0,0.00028219,9]
[392011080,1761091845242,-150.0,0.00028286,2]
[392011081,1761091845251,-150.0,0.00028286,2]
[392011082,1761091845260,-150.0,0.00028286,2]
[392011083,1761091845269,-150.0,0.00028286,2]
[392011084,1761091845279,-150.0,0.00028286,2]
[392011085,1761091845288,-150.0,0.00028286,2]
[392011086,1761091845298,-2510.83,0.000283,2]
[392011087,1761091845307,-3909.96,0.000283,7]
[392011088,1761091845316,-459.375567,0.00028322,2]
[392011089,1761091845326,-1102.441547,0.00028322,2]
[392011090,1761091845335,-10449.26583906,0.0002841,2]
[392011091,1761091845344,-500.0,0.00028413,15]
[392011092,1761091845353,-660.0,0.00028422,2]
[392011093,1761091845363,-500.71478119,0.00028473,5]
[392011094,1761091845372,-199.0,0.00028493,10]
[392011095,1761091845382,-2504.57453469,0.000285,7]
[392011096,1761091845403,-21790.82787461,0.000285,7]
[392011097,1761091845507,5000.0,0.0002399,2]
[392011098,1761091845527,-107946.85054403,0.000285,7]
[392011099,1761091845749,-3e-08,0.000285,7]
[392011100,1761091845823,-300.0,0.00024,2]
[392011101,1761091845833,-10640.41668288,0.000285,7]
[392011102,1761091845842,-200.0,0.0002851,7]
[392011103,1761091845851,-450.0,0.00028616,5]
[392011104,1761091845860,-370.88794904,0.00028616,5]
[392011105,1761091845869,-2000.0,0.00028616,5]
[392011106,1761091845878,-2013.67461377,0.00028616,5]
[392011107,1761091845888,-2000.0,0.00028616,5]
[392011108,1761091845897,-350.86883239,0.00028668,5]
[392011109,1761091845907,-500.0,0.00028687,15]
[392011110,1761091845916,-4000.0,0.00028708,5]
[392011111,1761091845925,-990.53667179,0.0002876,2]
[392011112,1761091845934,-26622.45674023,0.0002876,2]
[392011113,1761091845944,-4000.0,0.0002876,5]
[392011114,1761091845952,-250.36760249,0.0002876,2]
[392011115,1761091845962,-2318.85844941,0.0002876,2]
[392011116,1761091845971,-250.0,0.00028767,2]
[392011117,1761091845980,-250.0,0.00028767,2]
[392011118,1761091845990,-250.0,0.00028767,2]
[392011119,1761091846000,-250.0,0.00028767,2]
[392011120,1761091846009,-250.0,0.00028767,2]
[392011121,1761091846019,-250.0,0.00028767,2]
[392011122,1761091846028,-250.0,0.00028767,2]
[392011123,1761091846038,-250.0,0.00028767,2]
[392011124,1761091846047,-250.0,0.00028767,2]
[392011125,1761091846056,-250.0,0.00028767,2]
[392011126,1761091846066,-250.0,0.00028767,2]
[392011127,1761091846075,-250.0,0.00028767,2]
[392011128,1761091846084,-250.0,0.00028767,2]
[392011129,1761091846093,-250.0,0.00028767,2]
[392011130,1761091846103,-250.0,0.00028767,2]
[392011131,1761091846111,-250.0,0.00028767,2]
[392011132,1761091846120,-250.0,0.00028767,2]
[392011133,1761091846129,-250.0,0.00028767,2]
[392011134,1761091846138,-250.0,0.00028767,2]
[392011135,1761091846147,-250.0,0.00028767,2]
[392011136,1761091846156,-250.0,0.00028767,2]
[392011137,1761091846165,-250.0,0.00028767,2]
[392011138,1761091846293,-267.40309408,0.00028767,2]
[392011139,1761091846326,-199.0,0.00028767,11]
[392011140,1761091846336,-169.86506679,0.000288,7]
[392011141,1761091846346,-836.26396498,0.00028809,2]
[392011142,1761091846356,-459.375567,0.00028878,20]
[392011143,1761091846365,-1102.441547,0.00028878,20]
[392011144,1761091846375,-160.0,0.0002891,2]
[392011146,1761091846385,-417.15472785,0.0002891,2]
[392011148,1761091846394,-200.0,0.0002891,7]
[392011150,1761091846403,-150.0,0.00028928,30]
[392011152,1761091846413,-3784.0006375,0.00028938,2]
[392011154,1761091846422,-500.0,0.00028961,15]
[392011155,1761091846432,-760.0,0.0002897,2]
[392011156,1761091846442,-882.15868092,0.00029,2]
[392011157,1761091846451,-1169.22382714,0.00029,2]
[392011158,1761091846461,-502.54057407,0.00029,7]
[392011159,1761091846470,-30150.58,0.00029,7]
[392011160,1761091846480,-1052.12,0.00029,2]
[392011161,1761091846490,-60050.03206643,0.0002904,2]
[392011162,1761091846500,-199.0,0.00029041,12]
[392011163,1761091846511,-500.0,0.00029082,7]
[392011164,1761091846520,-202.71,0.000291,7]
[392011165,1761091846530,-459.375567,0.00029144,2]
[392011166,1761091846540,-1102.441547,0.00029144,2]
[392011167,1761091846551,-2500.0,0.00029164,5]
[392011168,1761091846561,-453.35995869,0.00029164,5]
[392011169,1761091846571,-1052.12,0.00029174,2]
[392011170,1761091846581,-2510.83,0.000292,2]
[392011171,1761091846592,-3909.96,0.000292,7]
[392011172,1761091846602,-500.0,0.00029235,15]
[392011173,1761091846611,-4500.0,0.00029256,5]
[392011174,1761091846621,-200.0,0.0002931,7]
[392011175,1761091846634,-199.0,0.00029315,13]
[392011176,1761091846644,-1052.12,0.00029348,2]
[392011177,1761091846655,-500.0,0.00029355,7]
[392011178,1761091846666,-2020.80171335,0.0002939,5]
[392011179,1761091846677,-163.0,0.00029485,7]
[392011180,1761091846686,-165.0,0.00029485,7]
[392011181,1761091846696,-166.0,0.00029485,7]
[392011182,1761091846708,-187.82326272,0.00029485,7]
[392011183,1761091846721,-165.0,0.00029485,7]
[392011184,1761091846730,-166.0,0.00029485,7]
[392011185,1761091846741,-165.0,0.00029485,7]
[392011186,1761091846751,-330.0,0.00029485,7]
[392011187,1761091846760,-165.0,0.00029485,7]
[392011188,1761091846770,-166.0,0.00029485,7]
[392011189,1761091846780,-167.1362042,0.00029485,7]
[392011190,1761091846789,-166.0,0.00029485,7]